{"text_format":"1","workbook":"xlsx","n_sheets":5,"sheets":["أعمال الحفر ومكافحة النمل","أعمال الردم ","أعمال الخرسانات","أعمال المباني","تجميع الملفات"],"not_rendered":{"charts":0,"images":1,"macros":0,"external_links":0,"defined_names":5,"comments":0,"pivot_tables":0},"unopened":[],"bounds":{"document_bytes":16777216,"sheet_cells":100000,"rows_first":2000,"rows_last":500,"rows_between":2000,"halvings":0,"cell_chars":16384,"cell_head_chars":4096},"cells_cut":0,"cells_raw":0,"read":"whole","date_system":"1900"}

{"sheet":"أعمال الحفر ومكافحة النمل","index":0,"n_rows":59,"n_cols":11,"rows_kept":59,"cut":false,"hidden":false,"merged":[[53,10,56,10],[52,1,58,1],[1,10,24,10],[0,1,45,8],[46,1,46,8],[47,1,47,8],[48,1,48,8],[49,1,49,2],[49,4,50,8],[50,1,50,2],[51,1,51,2],[58,2,58,6]]}
[null,"القسم :02 \n\n\nأعمال أعمال الحفر ومكافحة النمل"]
[null,null,null,null,null,null,null,null,null,null,"أريد كود يقوم بإلغاء دمج الخلايا من كل الشيت ثم يقوم بدمج كل صفين مع  بعض وإنشاء صفحة جديدة ووضع البنود المدموجة فيها لتكون كالشكل التالى وهكذا لباقى البنود\n"]
[]
[]
[]
[]
[]
[]
[]
[]
[]
[]
[]
[]
[]
[]
[]
[]
[]
[]
[]
[]
[]
[]
[]
[]
[]
[]
[]
[]
[]
[]
[]
[]
[]
[]
[]
[]
[]
[]
[]
[]
[]
[]
[]
[]
[]
[null,"نموذج  1 "]
[null,"المملكة العربية السعودية - "]
[null,"رقم المشروع ",null," تاريخ الإصدار ","أعمال الردم "]
[]
[null,null,null,"البند ","الوحدة ","الكمية ","السعر ","الإجمالي ","الملاحظات "]
[null,"01","1","اولا : اعمال الحفر "]
[null,null,"1-1","بالمقطوعية حفر لزوم الأساسات حسب المقاسات والأبعاد الموضحة وتقرير الجسات حتى الوصول لمنسوب التأسيس المطلوب والبند يشمل تأمين وعمل الخنزيرة والدك وتسوية قاع الحفر على المنسوب المطلوب ونقل ناتج الحفر للمقالب العمومية والبند شامل كل مايلزم والمقاس هندسي.  "]
[null,null,null," مما جميعة بالمتر المكعب ","مقطوعية",1,5000,{"$f":"F55*G55","v":5000}]
[null,null,null,"مكافحة النمل الأبيض"]
[null,null,"1-2","توريد و عمل رش مبيدات للنمل الأبيض من شركة معتمدة على أن يتم التغطية بطبقة بلاستيك عقب الرش مباشرة وأن يتم التنفيذ حسب الرسومات و المواصفات الفنية وأصول الصناعة و تعليمات المهندس المشرف.مما جميعة بالمتر المسطح لزوم الأساسات والخزان الأرضى.","مقطوعية",1,5000,{"$f":"F57*G57","v":5000}]
[null,null,"1-2-1","مما جميعة بالمتر المسطح لزوم الأساسات والخزان الأرضى.","مقطوعية",1,5000,{"$f":"F58*G58","v":5000}]
[null,null,"إجمالي أعمال رش النمل ",null,null,null,null,{"$f":"SUM(H58:H58)","v":5000}]

{"sheet":"أعمال الردم ","index":1,"n_rows":56,"n_cols":9,"rows_kept":56,"cut":false,"hidden":false,"merged":[[55,2,55,6],[52,3,52,8],[53,4,53,8],[52,1,54,1],[51,1,51,2],[0,1,45,8],[46,1,46,8],[47,1,47,8],[48,1,48,8],[49,1,49,2],[49,4,50,8],[50,1,50,2]]}
[null,"القسم :02 \n\n\nأعمال الردم"]
[]
[]
[]
[]
[]
[]
[]
[]
[]
[]
[]
[]
[]
[]
[]
[]
[]
[]
[]
[]
[]
[]
[]
[]
[]
[]
[]
[]
[]
[]
[]
[]
[]
[]
[]
[]
[]
[]
[]
[]
[]
[]
[]
[]
[]
[]
[null,"نموذج  1 "]
[null,"المملكة العربية السعودية - "]
[null,"رقم المشروع ",null," تاريخ الإصدار ","أعمال الردم "]
[]
[null,null,null,"البند ","الوحدة ","الكمية ","السعر ","الإجمالي ","الملاحظات "]
[null,"02",null,"ثانياً : اعمال الردم : "]
[null,null,"2-1","بالمتر المكعب توريد وردم برمال نظيفة للوصول لمنسوب التأسيس المطلوب أسفل الأساسات وحول وأعلى الأساسات وكذلك داخل المبنى  وعلى طبقات لا تزيد عن 30 سم لكل طبقة مع الرش بالمياه والدمك الجيد باستخدام معدة دمك مناسبة وإجراء اختبارات الدمك اللازمة طبقا للأصول الفنية والمواصفات وتسوية السطح حتى منسوب أسفل أرضية الدور الأرضي والأرصفة طبقا للمناسيب الموضحة بالرسومات والمقاس هندسي."]
[null,null,"2-1-1","مما جميعة بالمتر المكعب ","م3",500,30,{"$f":"F55*G55","v":15000}]
[null,null,"إجمالي أعمال الردم ",null,null,null,null,{"$f":"H55","v":15000}]

{"sheet":"أعمال الخرسانات","index":2,"n_rows":52,"n_cols":9,"rows_kept":52,"cut":false,"hidden":false,"merged":[[0,1,35,8],[36,1,36,8],[37,1,37,8],[38,1,38,2],[38,4,39,8],[39,1,39,2],[51,2,51,6],[40,1,40,2],[41,3,41,8],[42,4,42,8],[44,4,44,8],[46,4,46,8],[41,1,50,1]]}
[null,"القسم : 03\n\n\nأعمال الخرسانات "]
[]
[]
[]
[]
[]
[]
[]
[]
[]
[]
[]
[]
[]
[]
[]
[]
[]
[]
[]
[]
[]
[]
[]
[]
[]
[]
[]
[]
[]
[]
[]
[]
[]
[]
[]
[null,"نموذج 1"]
[null,"المملكة العربية السعودية "]
[null,"رقم المشروع ",null," تاريخ الإصدار ",{"$f":"#REF!","v":{"$error":"#REF!"}}]
[]
[null,null,null,"البند ","الوحدة ","الكمية ","السعر ","الإجمالي ","الملاحظات "]
[null,"03","3","ثالثاً : اعمال الخرسانة "]
[null,null,"3-1","بالمتر المكعب – خرسانة عادية للأساسات طبقاً للرسومات وذات مقاومة مميزة للضغط لا تقل عن 200كجم / سم2 بعد 28 يوم من تاريخ الصب شاملا المصنعيات والشدات مع عمل جميع الاختبارات اللازمة على الخرسانة ومكوناتها طبقا للأصول الصناعة والمواصفات الفنية والقياس هندسي . "]
[null,null,"3-1-1","مما جميعة بالمتر المكعب لزوم الأساسات","م3",108,310,{"$f":"F44*G44","v":33480}]
[null,null,"3-2"," بالمتر المسطح توريد وعمل دكة خرسانة عادية سمك  12.50 سم وذلك لزوم ارضية الدور الارضى و الاجهاد حسب المخططات التصميمية و شبكة تسليح قطر 8مم  مع خدمة السطح والمعالجة بالمياة والفئة تشمل كل ما يلزم لنهو الاعمال علي الوجة الاكمل طبقا للمواصفات وأصول الصناعه وتعليمات جهاز الاشراف.  "]
[null,null,"3-2-1","مما جميعة بالمتر المسطح لزوم ارضية الدورالارضى .","م2",948,72,{"$f":"F46*G46","v":68256}]
[null,null,"3-3","بالمتر المكعب توريد وصب خرسانة مسلحة ذات مقاومة مميزة للضغط اسطواني لا تقل عن 300كجم / سم2 بعد 28 يوم من تاريخ الصب وطبقا للرسومات الإنشائية والملاحظات الخاصة بها بما في ذلك نوع الأسمنت و صلب التسليح وسلك الرباط والخرسانة والمصنعية والشدات والعبوات الخشبية ولا يسمح بالصب الا بعد اعتماد المهندس المشرف للشدة والتسليح ولا تفك الشدات إلا بعد مضى المدة المقررة أو حسب تعليمات المهندس المشرف."]
[null,null,"3-3-1"," مما جميعة بالمتر المكعب لزوم الاساسات مقاوم. ","م3",755,842,{"$f":"F48*G48","v":635710}]
[null,null,"3-3-2"," مما جميعة بالمتر المكعب لزوم السملات ورقاب الأعمدة مقاوم.","م3",39,842,32838]
[null,null,"3-3-3"," مما جميعة بالمتر المكعب لزوم الأعمدة وحوائط القص.","م3",351,1078,378378]
[null,null,"3-3-4"," مما جميعة بالمتر المكعب لزوم الأسقف.","م3",1286,902,1159972]
[null,null,"إجمالي أعمال الخرسانات",null,null,null,null,{"$f":"SUM(H44:H51)","v":2308634}]

{"sheet":"أعمال المباني","index":3,"n_rows":62,"n_cols":9,"rows_kept":62,"cut":false,"hidden":false,"merged":[[0,1,45,8],[46,1,46,8],[47,1,47,8],[48,1,48,2],[48,4,49,8],[49,1,49,2],[50,1,50,2],[51,1,61,1],[51,3,51,8],[52,4,52,8],[61,2,61,6]]}
[null,"القسم : 04\n\n\nأعمال المبانى"]
[]
[]
[]
[]
[]
[]
[]
[]
[]
[]
[]
[]
[]
[]
[]
[]
[]
[]
[]
[]
[]
[]
[]
[]
[]
[]
[]
[]
[]
[]
[]
[]
[]
[]
[]
[]
[]
[]
[]
[]
[]
[]
[]
[]
[]
[null,"نموذج 1"]
[null,"المملكة العربية السعودية "]
[null,"رقم المشروع ",null," تاريخ الإصدار "]
[]
[null,null,null,"البند ","الوحدة ","الكمية ","السعر ","الإجمالي ","الملاحظات "]
[null,"04","4","رابعاً : اعمال المبانى "]
[null,null,null,"يتم تنفيذ أعمال المباني طبقا للرسومات المعمارية للمشروع باستخدام الطوب الأحمر المفرغ وارد الخياط للحوائط الداخلية والخارجية وأعمال المباني الخارجية تشمل تنفيذ جدارين من البلك الأحمر بينهم فوم البوليسترين سمك 5 سم بكثافة 35 كجم/م3 بسماكة 5 سم  ،وتراعى الأصول الفنية في أعمال تنفيذ المباني وذلك من حيث الرأسية والاستقامة والاستواء وتزود جميع الفتحات للأبواب والشبابيك بأربطة من الطوب المصمت وكما يجب ربط المباني مع الأعمدة  الخرسانة باستخدام زوايا حديد مجلفن وكذلك تركيب شبك معدني كل أربعة مداميك للحوائط أطول من أربعة أمتار ومراعاة تحديد أماكن الفتحات بدقة طبقا للرسومات وتكون على مناسيب واحدة  ويأخذ لها أشراب ثابتة كما يراعى الاهتمام بالمعالجة برش المياه 3 ايام  وملئ الفراغات.ويراعى فى تنفيذ الأعتاب مقاس فتحات الأبواب والشبابيك وأن تكون مقاسات الأعتاب ونسبة الحديد متناسبة مع عروض الفتحات .   "]
[null,null,"4-1","بالمتر المسطح توريد وتركيب بلوك أحمر (جدارين سمك الجدار الواحد 10 سم وبينهم فوم من البوليسترين سمك 5 سم بكثافة 35 كجم/م3 ) لزوم المباني الخارجية والمناور لتحقيق اشتراطات العزل الحراري طبقاً لكود البناء السعودي مع عمل المباني طبقاً للمواصفات مع استخدام طوب مصمت بركاني حول الأبواب والشبابيك بمونة 300 كجم أسمنت + 1م 3 رمل والسعر يشمل تركيب كانات كل 3 مداميك عند التقاء المباني مع الاعمدة الخرسانية ويتم تنفيذ أعمال المباني طبقا للرسومات والمواصفات الفنية وأصول الصناعة","م2",4090,111,{"$f":"F54*G54","v":453990}]
[null,null,"4-2","بالمتر المسطح توريد وتركيب بلوك أحمر معزول سمك20سم 15 فتحة لزوم المباني الخارجية والمناور حسب الرسومات مع عمل المباني طبقاً للمواصفات مع استخدام طوب مصمت بركاني حول الأبواب والشبابيك بمونة 300 كجم أسمنت + 1م 3 رمل والسعر يشمل تركيب كانات كل 3 مداميك عند التقاء المباني مع الاعمدة الخرسانية ويتم تنفيذ أعمال المباني طبقا للرسومات والمواصفات الفنية وأصول الصناعة","م2",4090,57,null,"بند مرادف"]
[null,null,"4-3","بالمتر المسطح تركيب بلوك أحمر سمك 10سم لزوم المباني الداخلية حسب الرسومات مع عمل المباني طبقاً للمواصفات مع أستخدام طوب مصمت بركاني حول الأبواب والشبابيك بمونة 300 كجم أسمنت + 1م 3 رمل والسعر يشمل تركيب كانات كل 3 مداميك عند التقاء المباني مع الاعمدة الخرسانية ويتم تنفيذ أعمال المباني طبقا للرسومات والمواصفات الفنية وأصول الصناعة","م2",4173,53,{"$f":"F56*G56","v":221169}]
[null,null,null,"بالمتر المسطح توريد وتركيب ألواح خرسانية Hollow Core non load bearing walls لزوم أعمال المباني الداخلية سمك 10سم وارد شركة مصنعORAK أو ما يماثله في الجودة والسعر يشمل تركيب ما يلزم من الزوايا المعدنية (steel iron angles 250*40*2 cm) والخاصة بالتثبيت عند التقاء الألواح مع الاعمدة والبلاطات الخرسانية ويتم تنفيذ الأعمال طبقا للرسومات والمواصفات الفنية وأصول الصناعة","م2",4810,125,0]
[null,null,"4-4","بالمتر الطولى توريد وتركيب بلوك أسمنتي سمك 20سم لدروة بيت الدرج والمصاعد  بارتفاع 40 سم بمونة 300 كجم أسمنت + 1م 3 رمل مع عمل المباني والسعر يشمل تنفيذ الهيكل الخرساني والكمرة المقلوبة على الدائر المعماري طبقاً للرسومات والمواصفات الفنية.","م.ط",{"$f":"9.5*2+17","v":36},115,{"$f":"F58*G58","v":4140}]
[null,null,"4-5","بالمتر الطولى توريد وتركيب بلوك أسمنتي سمك 20سم لدروة السطح والخارجات والاسطح العلوية بارتفاع 2.00م بمونة 300 كجم أسمنت + 1م 3 رمل للبنود مع عمل المباني والسعر يشمل تنفيذ الهيكل الخرساني والكمرة المقلوبة على الدائر المعماري طبقاً للرسومات والمواصفات الفنية.","م.ط",200,115,23000]
[null,null,"4-6","بالمتر المسطح لزوم مباني قصة الردم أسفل الحوائط الداخلية بلوك أسمنتى مصمت سمك 20 سم بمونة 300 كجم أسمنت + 1م 3 رمل","م2",360,45,{"$f":"F60*G60","v":16200}]
[null,null,"4-7"," بالمتر المسطح لزوم الحوائط الداخلية الفاصلة بين الواحدات السكنية بلك بركانى معزول 20 سم بمونة 300 كجم أسمنت + 1م 3 رمل والسعر يشمل تركيب كانات كل 3 مداميك عند التقاء المباني مع الاعمدة الخرسانية ويتم تنفيذ أعمال المباني طبقا للرسومات والمواصفات الفنية وأصول الصناعة","م2",{"$f":"387","v":387},{"$f":"57+10","v":67},25929]
[null,null,"إجمالي أعمال المبانى ",null,null,null,null,{"$f":"SUM(H54:H61)","v":744428}]

{"sheet":"تجميع الملفات","index":4,"n_rows":5,"n_cols":9,"rows_kept":5,"cut":false,"hidden":false,"merged":[[2,10,4,10]]}
[null,null,null,"البند ","الوحدة ","الكمية ","السعر ","الإجمالي ","الملاحظات "]
[null,"01","1","اولا : اعمال الحفر "]
[null,null,"1-1","بالمقطوعية حفر لزوم الأساسات حسب المقاسات والأبعاد الموضحة وتقرير الجسات حتى الوصول لمنسوب التأسيس المطلوب والبند يشمل تأمين وعمل الخنزيرة والدك وتسوية قاع الحفر على المنسوب المطلوب ونقل ناتج الحفر للمقالب العمومية والبند شامل كل مايلزم والمقاس هندسي.   مما جميعة بالمتر المكعب ","مقطوعية",1,5000,{"$f":"F3*G3","v":5000}]
[null,null,null,"مكافحة النمل الأبيض"]
[null,null,"1-2","توريد و عمل رش مبيدات للنمل الأبيض من شركة معتمدة على أن يتم التغطية بطبقة بلاستيك عقب الرش مباشرة وأن يتم التنفيذ حسب الرسومات و المواصفات الفنية وأصول الصناعة و تعليمات المهندس المشرف.مما جميعة بالمتر المسطح لزوم الأساسات والخزان الأرضى.مما جميعة بالمتر المسطح لزوم الأساسات والخزان الأرضى.","مقطوعية",1,5000,{"$f":"F5*G5","v":5000}]